Cogmind - Beta 12 @@@ ROGUE MODE // 2023.12.13 @ 15:38:06 Player: Dosh Result: Self-destructed Performance ------------- Evolutions (2) 1000 Regions Visited (5) 1000 Robots Destroyed (27) 135 Value Destroyed (506) 506 Prototype IDs (24) 480 Alien Tech Used (0) 0 Bonus (300) 300 TOTAL SCORE: 3421 Bonus ------- Aligned with FarCom 300 Cogmind --------- Core Integrity 241/550 Matter 197/300 Energy 100/100 System Corruption 0% Temperature Danger (420) Movement Core (400) Ox7 Location -8/Materials Parts ------- > --- POWER (1) -------- (None) > --- PROPULSION (3) --- (None) > --- UTILITY (5) ------ Large Storage Unit Hacking Suite > --- WEAPON (2) ------- Gauss Rifle > --- INVENTORY (15) --- Light Ion Engine Light Ion Engine Light Treads Light Treads Small Storage Unit EM Pulse Gun Light Assault Rifle Gauss Rifle AWS/Gauss Datajack Peak State ------------ > --- POWER ------------ Heavy Ion Engine > --- PROPULSION ------- Light Treads Light Treads Light Treads > --- UTILITY ---------- Large Storage Unit Light Armor Plating Hardened Medium Armor Plating Improved Light Armor Plating Hacking Suite > --- WEAPON ----------- Gauss Rifle Gauss Rifle > --- INVENTORY -------- Light Ion Engine Light Ion Engine Light Treads Light Treads Small Storage Unit Weapon Shielding EM Pulse Gun Light Assault Rifle Gauss Rifle Gauss Rifle AWS/Gauss Datajack [Rating: 28] Favorites ----------- Power Heavy Ion Engine Engine Heavy Ion Engine Propulsion Light Treads Treads Light Treads Utility Large Storage Unit Storage Large Storage Unit Processor Targeting Computer Hackware Hacking Suite Protection Weapon Shielding Weapon EM Pulse Gun Energy Gun EM Pulse Gun Ballistic Gun Light Assault Rifle Launcher Grenade Launcher Build | -11 -10 -10 -10 -9 -8 ------- Run | Jun Mat Min Exi Min Mat Slots Evolved 4 | . . . . . 4 Power . | . . . . . . Propulsion 1 | . . . . . 1 Utility 3 | . . . . . 3 Weapon . | . . . . . . Parts Attached 26 | 6 6 1 . 1 12 Power 2 | 1 1 . . . . Engine 2 | 1 1 . . . . Core . | . . . . . . Reactor . | . . . . . . Propulsion 3 | 2 . . . . 1 Treads 3 | 2 . . . . 1 Leg . | . . . . . . Wheel . | . . . . . . Hover . | . . . . . . Flight . | . . . . . . Utility 10 | 1 1 1 . 1 6 Device . | . . . . . . Storage 2 | 1 1 . . . . Processor 1 | . . . . . 1 Hackware 1 | . . . . 1 . Protection 6 | . . 1 . . 5 Artifact . | . . . . . . Weapon 11 | 2 4 . . . 5 Energy Gun 2 | 1 1 . . . . Energy Cannon . | . . . . . . Ballistic Gun 6 | 1 1 . . . 4 Ballistic Cannon . | . . . . . . Launcher 3 | . 2 . . . 1 Special Weapon . | . . . . . . Impact Weapon . | . . . . . . Slashing Weapon . | . . . . . . Piercing Weapon . | . . . . . . Special Melee Weapon . | . . . . . . Unidentified Prototypes 1 | . 1 . . . . Corrupted Parts 1 | . . . . 1 . System Corruption 8 | . . . . 8 . Parts Lost 12 | . . . . . 12 Power 1 | . . . . . 1 Propulsion 3 | . . . . . 3 Utility 5 | . . . . . 5 Weapon 3 | . . . . . 3 Highest Loss Streak 12 | . . . . . 12 To Critical Strikes . | . . . . . . Average Slot Usage (%) 92 | . 86 98 100 100 87 Engine 13 | . 14 14 14 14 9 Treads 27 | . 28 28 28 28 25 Storage 13 | . 15 14 14 14 9 Hackware 1 | . . . . . 9 Protection 8 | . . 12 14 14 15 Energy Gun 12 | . 13 14 14 14 4 Ballistic Gun 13 | . 13 14 14 14 13 Naked Turns . | . . . . . . Heaviest Build 47 | 11 38 32 32 32 47 Greatest Support 60 | 40 40 40 40 40 60 Greatest Overweight (x) . | . . . . . . Average Overweight (x) . | . . . . . . Largest Inventory Capacity 15 | 8 15 15 15 15 15 Average Capacity 14 | 6 13 15 15 15 15 Most Carried 15 | 2 7 10 12 12 15 Average Carried 7 | . 4 7 11 12 12 Final Capacity 15 | 8 15 15 15 15 15 Final Carried 12 | 1 7 10 12 12 11 Class Distribution -------------------- 100% | Mutant Dominant Class ---------------- Mutant | -10/Materials Mutant | -10/Mines Mutant | -10/Exiles Mutant | -9/Mines Mutant | -8/Materials Resources | -11 -10 -10 -10 -9 -8 ----------- Run | Jun Mat Min Exi Min Mat Matter Collected 542 | 222 166 . . . 154 Remotely . | . . . . . . Salvage Created 632 | . 331 . . . 301 Parts 60 | . 31 . . . 29 Haulers Intercepted . | . . . . . . Recyclers Shooed . | . . . . . . Parts Field Recycled . | . . . . . . Retrieved Matter . | . . . . . . Parts Self-Destructed . | . . . . . . Prevented . | . . . . . . Kills | -11 -10 -10 -10 -9 -8 ------- Run | Jun Mat Min Exi Min Mat Combat Hostiles Destroyed 19 | . 7 . . . 12 Guns 8 | . 4 . . . 4 AOE 11 | . 3 . . . 8 Classes Destroyed 8 | . 6 . . . 2 Worker 2 | . 2 . . . . Builder 2 | . 1 . . . 1 Recycler 1 | . . . . . 1 Operator 2 | . 2 . . . . Watcher 1 | . 1 . . . . Swarmer 11 | . 3 . . . 8 Grunt 6 | . 4 . . . 2 Sentry 2 | . . . . . 2 Best Kill Streak 14 | . 6 . . . 14 Combat Bots Only 8 | . 4 . . . 8 Max Kills in Single Turn 4 | . 4 . . . 4 Gunslinging . | . . . . . . Exploded 4 | . 2 . . . 4 Melee . | . . . . . . Uniques/NPCs Destroyed . | . . . . . . Combat | -11 -10 -10 -10 -9 -8 -------- Run | Jun Mat Min Exi Min Mat Damage Taken 2123 | . 232 . . . 1891 Core 340 | . 31 . . . 309 Absorbed by Shields . | . . . . . . Redirected to Shielding 21 | . . . . . 21 Core Remaining (%) 93 | 100 . . . 87 . Volleys Fired 64 | . 41 1 . . 22 Largest 2 | . 2 2 . . 2 Hottest 70 | . 70 60 . . 60 Shots Fired 125 | . 81 2 . . 42 Gun 119 | . 78 2 . . 39 Cannon . | . . . . . . Launcher 6 | . 3 . . . 3 Special . | . . . . . . Kinetic 78 | . 39 1 . . 38 Thermal . | . . . . . . Explosive 6 | . 3 . . . 3 Electromagnetic 41 | . 39 1 . . 1 Robot Hit Streak 10 | . 5 1 . . 10 Robot Miss Streak 7 | . 5 1 . . 7 Penetration Max 1 | . . . . . 1 Secondary Targets 3 | . . . . . 3 Max Gunslinging Chain 1 | . . . . . 1 Shots Hit Robots 72 | . 46 1 . . 25 Core Hits 46 | . 18 1 . . 27 Critical Kills . | . . . . . . Critical Parts Destroyed 1 | . . . . . 1 Critical Strikes 2 | . 1 . . . 1 Destroy 1 | . . . . . 1 Corrupt 1 | . 1 . . . . Melee Attacks . | . . . . . . Impact . | . . . . . . Slashing . | . . . . . . Piercing . | . . . . . . Sneak Attacks . | . . . . . . Combat Hostiles . | . . . . . . Follow-up Attacks . | . . . . . . Damage Inflicted 1908 | . 796 12 . 21 1079 Guns 1092 | . 516 11 . . 565 Cannons . | . . . . . . Explosions 794 | . 280 . . . 514 Melee . | . . . . . . Ramming 22 | . . 1 . 21 . Kinetic 708 | . 163 . . . 545 Thermal . | . . . . . . Explosive 794 | . 280 . . . 514 Electromagnetic 384 | . 353 11 . . 20 Impact . | . . . . . . Slashing . | . . . . . . Piercing . | . . . . . . Highest Corruption 8 | . . . . 8 . Average Corruption 8 | . . . . 8 . Corruption Purged . | . . . . . . Corruption Blocked . | . . . . . . Overload Shots . | . . . . . . Overflow Damage 60 | . 20 . . . 40 Projectiles . | . . . . . . Explosions 60 | . 20 . . . 40 Melee . | . . . . . . Knockbacks . | . . . . . . Impact . | . . . . . . Kinetic . | . . . . . . Secondary . | . . . . . . Self-Inflicted Damage 92 | . . . . . 92 Shots 3 | . . . . . 3 Rammed 5 | . 2 1 . 2 . Targets Rammed 5 | . 2 1 . 2 . Kicked . | . . . . . . Crushed . | . . . . . . Highest Temperature 427 | . 175 22 . . 427 Average Temperature 102 | . 47 12 . . 198 Received Heat Transfer 972 | . 90 . . . 882 Effects 2 | . . . . . 2 Shutdowns 1 | . . . . . 1 Matter Decay 1 | . . . . . 1 Siege Activations . | . . . . . . Robots Corrupted . | . . . . . . Combat Hostiles . | . . . . . . Parts Fried 3 | . 3 . . . . Impact Corruptions . | . . . . . . Robots Melted . | . . . . . . Combat Hostiles . | . . . . . . Parts Melted . | . . . . . . Heat Transferred . | . . . . . . Parts Sabotaged . | . . . . . . Parts Stolen . | . . . . . . Parts Stripped . | . . . . . . Power Chain Reactions . | . . . . . . Missiles Intercepted . | . . . . . . Alert | -11 -10 -10 -10 -9 -8 ------- Run | Jun Mat Min Exi Min Mat Peak Influence 253 | . 172 51 . . 253 Initial 36 | . . 36 . . . Average 48 | . 71 37 . . 40 Maximum Alert Level 1 | . . . . . 1 Low Security (%) 98 | 100 100 100 . 100 91 Level 1 1 | . . . . . 8 Level 2 . | . . . . . . Level 3 . | . . . . . . Level 4 . | . . . . . . Level 5 . | . . . . . . High Security . | . . . . . . Max Security . | . . . . . . Squads Dispatched 6 | . 2 . . . 4 Investigation . | . . . . . . Extermination . | . . . . . . Reinforcement 5 | . 2 . . . 3 Assault . | . . . . . . Garrison 1 | . . . . . 1 Intercept . | . . . . . . Searches Triggered . | . . . . . . Construction Impeded 1 | . . . . . 1 Haulers Reinforced . | . . . . . . Active Scanning Responses . | . . . . . . Cargo Convoy Interrupts . | . . . . . . Stealth | -11 -10 -10 -10 -9 -8 --------- Run | Jun Mat Min Exi Min Mat Distress Signals 3 | . 1 . . . 2 Communications Jammed . | . . . . . . Distress Signals . | . . . . . . Times Spotted 40 | . 14 2 . . 24 Peak Tracking Total 13 | . 4 2 . . 13 Tactical Retreats . | . . . . . . Traps | -11 -10 -10 -10 -9 -8 ------- Run | Jun Mat Min Exi Min Mat Traps Triggered . | . . . . . . Indirectly . | . . . . . . Trap Hack Attempts . | . . . . . . Triggered . | . . . . . . Disarmed . | . . . . . . Reprogrammed . | . . . . . . Reused . | . . . . . . Traps Extracted . | . . . . . . Installed . | . . . . . . Triggered . | . . . . . . Machines | -11 -10 -10 -10 -9 -8 ---------- Run | Jun Mat Min Exi Min Mat Machines Disabled 1 | . . . . . 1 Max in Single Turn 1 | . . . . . 1 Machines Repaired . | . . . . . . Machines Sabotaged . | . . . . . . Overloaded Fab Kills . | . . . . . . Hacking | -11 -10 -10 -10 -9 -8 --------- Run | Jun Mat Min Exi Min Mat Machines Accessed 9 | . 4 . 1 . 4 Terminals 6 | . 4 . . . 2 Fabricators . | . . . . . . Repair Stations . | . . . . . . Recycling Units . | . . . . . . Scanalyzers 1 | . . . . . 1 Garrison Access 1 | . . . . . 1 Total Hacks 24 | . 16 . 1 . 7 Successful 10 | . 3 . 1 . 6 Failed 14 | . 13 . . . 1 Catastrophic . | . . . . . . Database Lockouts . | . . . . . . Manual 13 | . 8 . 1 . 4 Terminals 20 | . 16 . . . 4 Fabricators . | . . . . . . Repair Stations . | . . . . . . Recycling Units . | . . . . . . Scanalyzers 2 | . . . . . 2 Garrison Access 1 | . . . . . 1 Terminal Hacks 3 | . 1 . 1 . 1 Record 1 | . 1 . . . . Robot Analysis 1 | . . . . . 1 EX-Prototype ID Bank 1 | . . . 1 . . Fabricator Hacks . | . . . . . . Repair Station Hacks . | . . . . . . Recycling Unit Hacks . | . . . . . . Scanalyzer 2 | . . . . . 2 Insert Component 1 | . . . . . 1 Analyze 1 | . . . . . 1 Garrison Access Hacks 1 | . . . . . 1 Unlock Access 1 | . . . . . 1 Unauthorized Hacks 4 | . 2 . . . 2 Terminals 4 | . 2 . . . 2 Botnet 2 | . 1 . . . 1 Operators 2 | . 1 . . . 1 Fabricators . | . . . . . . Repair Stations . | . . . . . . Recycling Units . | . . . . . . Scanalyzers . | . . . . . . Garrison Access . | . . . . . . Data Cores Recovered . | . . . . . . Used . | . . . . . . Hacking Detections 4 | . 3 . . . 1 Full Trace Events 2 | . 2 . . . . Feedback Events . | . . . . . . Feedback Blocked . | . . . . . . Robot Schematics Acquired . | . . . . . . Robots Built . | . . . . . . Authchips . | . . . . . . Time . | . . . . . . Total Robot Build Rating . | . . . . . . Part Schematics Acquired 1 | . . . . . 1 Parts Built . | . . . . . . Authchips . | . . . . . . Time . | . . . . . . Total Part Build Rating . | . . . . . . Parts Repaired . | . . . . . . Time . | . . . . . . Parts Recycled . | . . . . . . Recycled Matter . | . . . . . . Retrieved Matter . | . . . . . . Retrieved Components . | . . . . . . Parts Scanalyzed 1 | . . . . . 1 Part Schematics Acquired 1 | . . . . . 1 Parts Damaged . | . . . . . . Bothacking | -11 -10 -10 -10 -9 -8 ------------ Run | Jun Mat Min Exi Min Mat Used RIF Installer . | . . . . . . Robots Hacked . | . . . . . . Non-combat . | . . . . . . Combat . | . . . . . . Robot Hacks Applied . | . . . . . . Relay Couplers Released . | . . . . . . Fabnet Peak Effective % . | . . . . . . Robots Rewired . | . . . . . . Allies Hacked . | . . . . . . Hacks Repelled . | . . . . . . Allies | -11 -10 -10 -10 -9 -8 -------- Run | Jun Mat Min Exi Min Mat Total Allies . | . . . . . . Largest Group . | . . . . . . Highest-Rated Group . | . . . . . . Highest-Rated Ally . | . . . . . . Total Orders . | . . . . . . Ally Attacks . | . . . . . . Total Damage . | . . . . . . Kills . | . . . . . . Allies Corrupted . | . . . . . . Allies Melted . | . . . . . . Intel | -11 -10 -10 -10 -9 -8 ------- Run | Jun Mat Min Exi Min Mat Robot Analysis Total 1 | . . . . . 1 Derelict Logs Recovered 2 | . . 2 . . . Drone Launches . | . . . . . . Drone Recoveries . | . . . . . . Exploration | -11 -10 -10 -10 -9 -8 ------------- Run | Jun Mat Min Exi Min Mat Turns Passed 2188 | 65 794 427 429 159 314 Spaces Moved 1221 | 38 413 262 268 97 143 Core 5 | 5 . . . . . Treads 1216 | 33 413 262 268 97 143 Legs . | . . . . . . Wheels . | . . . . . . Hover . | . . . . . . Flight . | . . . . . . Fastest Speed 50 | 50 160 160 160 160 160 Average Speed 159 | 145 160 160 160 160 160 Slowest Speed 160 | 160 160 160 160 160 160 Overloaded Moves . | . . . . . . Propulsion Burnouts . | . . . . . . Robots Hopped . | . . . . . . Cave-ins Triggered . | . . . . . . Exploration Rate (%) 36 | 3 69 43 70 21 13 Regions Visited 5 Branch Regions 3 Pre-discovered Areas 2 | . . 2 . . . Known Exits Taken . | . . . . . . Unknown Exits Taken 5 | 1 1 1 1 1 . Scrap Searched . | . . . . . . Spaces Dug . | . . . . . . Terrain Destroyed 43 | . 22 . . . 21 Melee . | . . . . . . Projectile . | . . . . . . AOE 43 | . 22 . . . 21 Terrain Rammed . | . . . . . . Walls Destroyed . | . . . . . . Machines Disabled . | . . . . . . Actions | -11 -10 -10 -10 -9 -8 --------- Run | Jun Mat Min Exi Min Mat Total 1332 | 45 469 267 268 99 184 Wait 3 | . 2 . . . 1 Move 1216 | 37 412 261 267 96 143 Hop . | . . . . . . Pick Up 16 | 2 5 3 1 . 5 Fast Attach 9 | 5 1 1 . . 2 Attach 8 | 1 . . . . 7 Detach 2 | . 1 . . . 1 Swap 9 | . 5 . . 1 3 Drop . | . . . . . . Fire 64 | . 41 1 . . 22 Melee . | . . . . . . Ram . | . . . . . . Kick . | . . . . . . Crush 5 | . 2 1 . 2 . Escape Stasis . | . . . . . . Rewire . | . . . . . . Trap . | . . . . . . Miscellaneous . | . . . . . . Route ------- -11/Junkyard -10/Materials (discovered 2 exits: *Mat / [*Min]) -10/Mines (discovered 2 exits: Mat / *Exi) -10/Exiles (discovered 2 exits: [*Min x2]) -9/Mines -8/Materials (discovered 1 exit: Gar) History --------- Turn | Location | Event 13 | -11/Junkyard | Discovered new exit (range 14) 66 | -11/Junkyard | Entered Materials 305 | -10/Materials | Build established: Mutant 512 | -10/Materials | Discovered new exit (range 10) 784 | -10/Materials | Discovered new exit (range 15) 860 | -10/Materials | Entered Mines 861 | -10/Mines | Learned location of Storage (-7) 1137 | -10/Mines | Joined a pair of Derelicts in attacking an 0b10 outpost 1201 | -10/Mines | Identified exit to Materials 1279 | -10/Mines | Deemed a non-threat by the Exiles lab entrance 1281 | -10/Mines | Discovered new exit (range 5) 1287 | -10/Mines | Entered Exiles 1313 | -10/Exiles | Discovered new exit (range 15) 1332 | -10/Exiles | Met 8R-AWN 1358 | -10/Exiles | Met EX-HEX 1401 | -10/Exiles | Met EX-BIN 1422 | -10/Exiles | Aligned with FarCom system 1423 | -10/Exiles | Given EX-Vault access code 1460 | -10/Exiles | Opened EX-Vault 1473 | -10/Exiles | Found AWS/Gauss 1508 | -10/Exiles | Warned to stay clear of 0b10 Research branches 1613 | -10/Exiles | Met EX-DEC 1688 | -10/Exiles | Discovered new exit (range 14) 1716 | -10/Exiles | Left Exiles lab with AWS/Gauss 1716 | -10/Exiles | Entered Mines 1860 | -9/Mines | Discovered new exit (range 8) 1875 | -9/Mines | Entered Materials 1875 | -8/Materials | Evolved 4 slots: Propulsion x1, Utility x3 1982 | -8/Materials | Identified exit to Garrison 2134 | -8/Materials | Garrison activated, responded to threat 2155 | -8/Materials | Destroyed 8 combat bots 2185 | -8/Materials | Core integrity fell below 50% 2189 | -8/Materials | Self-destructed Last Messages --------------- 02180_ Hvy. Ion Engine destroyed. 02181_ Slug penetrates G-47 Trooper. 02181_ G-47 Trooper suffers critical hit (Destroy). 02181_ Destroyed Aluminum Leg. 02181_ Slug penetrates G-47 Trooper. 02181_ G-47 Trooper destroyed. 02182_ Acquired 46 matter. 02183_ U-05 Engineer builds a Door. 02184_ Critical hit (Burn: +37). 02184_ G-47 Trooper destroyed. 02184_ Switching to secondary target: G-47 Trooper. 02184_ Slug penetrates Terminal. 02185_ Acquired 42 matter. 02186_ Gauss Rifle destroyed. 02186_ R-06 Scavenger collects Lgt. Ion Engine. 02187_ U-05 Engineer builds a Wall. 02187_ Slug penetrates G-47 Trooper. 02188_ U-05 Engineer lays Concrete. 02188_ U-05 Engineer builds a Wall. 02189_ R-06 Scavenger collects Hvy. Assault Rifle. Map ----- +----------------------------------------------------+ | ?????????????????????????????????????????????????? | | ?????????????????????????????????????????????????? | | ?????????????????????????????????????????????????? | | ?????????????????????????????????????????????????? | | ?????????????????????????????????????????????????? | | ?????????????????????????????????????????????????? | | ?????????????????????????????????????????????????? | | ?????????????????????????????????????????????????? | | ?????????????????????????????????????????????????? | | ?????????????????????????????????????????????????? | | ????????????????????b?gg?????????????????????????? | | ?????????????????????????????????????????????????? | | ?????????????????????????????????????????????????? | | ?????????????????????????????????????????????????? | | ????????????????????? ???????????????????????????? | | ????????????????????? ???????????????????????????? | | ?????????????????o??? ???????????????????????????? | | ????????????????????? ???????????????????????????? | | ?????????????????????w???????????????????????????? | | ????????????????????#w???????????????????????????? | | ????????????????????# #########??????????????????? | | ????????????????????# # #??????????????????? | | ????????????????????#%#r!!! #???????????????????? | | ????????????????????#%g !!!! #???????????????????? | | ??????????????????###*#!!!!! #???????????????????? | | ??????????????????#=|Y#%*@*=*#???????????????????? | | ??????????????????#|#%#gg "! #???????????????????? | | ??????????????????#[*%ug######???????????????????? | | ??????????######### #u######?????????????????????? | | ??????????# # / * #?????????????????????? | | ??????????# # # ! """#?????????????????????? | | ??????????# # """#?????????????????????? | | ??????????# ! * """#?????????????????????? | | ??????????# %! #?????????????????????? | | ??????????# =% ] #?????????????????????? | | ??????????# =########?????????????????????? | | ???????#######+## ## ####??????????????????? | | ???????#== # #?????????????????? | | ???????#== #?????????????????? | | ???????#== #?????????????????????? | | ???????#== ## #####+## #?????????????????????? | | ???????# ## # ! ## ##?????????????????????? | | ???????# ## # ## #??????????????????????? | | ???????###### # "" ## #??????????????????????? | | ???????????## # >G" ## ##?????????????????????? | | ???????????#T # "" ## T#?????????????????????? | | ???????????## # ## ##???#########?????????? | | ????????????# ######### #????# "" #?????????? | | ????????????# #????# #????# ""S #?????????? | | ????????????# #????# #????# "" #?????????? | +----------------------------------------------------+ Best States ------------- Heat Dissipation 31 Energy Generation 14 Energy Capacity 280 Matter Stores 300 Matter Capacity 300 Sight Range 16 Terrain Scan Density 10 Armor Coverage 375 Weapon Shielding 33 Evasion (%) 40 Targeting Accuracy 5 Recoil Reduction 3 Offensive Hacking 10 Item Schematics ----------------- Hrd. Medium Armor Plating | -8/Materials | Scanalyzed Robot Schematics ------------------ None Fabricated ------------ Nothing Alien Tech Used ----------------- None Achievements -------------- None Challenges ------------ None Game ------ Seed TeslaAblativeMachine Manual? 0 Play Time 00:12:24 Cumulative 58.2 hours Start 2023.12.13 @ 15:24:53 End 2023.12.13 @ 15:38:06 Sessions 1 Manual Loads 0 Difficulty Rogue Special Mode None Game No. 89 Rogue 89 Adventurer 0 Explorer 0 Win Type - Total 1 Types 1/0/0/0/0/0/0/0/0 Lore% 28 Gallery% 44 Achievement% 37 Wizard Run 0 Options --------- ASCII 0 Keyboard 1 Movement Numpad Keybinds 0 Fullscreen 2 Font 18/SmallcapsGlow Map View 76x50 Tactical HUD 1 Map Filters NONE Filters NONE Steam 1 RUN: 6670b205-b9ca-437c-a184-5b1e29feb108